bitfinex-derivatives/quotes_BNBF0:USTF0_20250115
["timestamp","ask_amount","ask_price","bid_price","bid_amount"]
[1736911647523,0.2631456,698.9,697.75,0.973]
[1736911647823,0.26315126,698.9,697.75,0.973]
[1736911648318,1.07198946,698.81,697.75,0.973]
[1736911649321,1.07198946,698.82,697.75,0.973]
[1736911650220,1.07198946,698.79,697.75,0.973]
[1736911653820,1.07198946,698.78,697.75,0.973]
[1736911655227,1.07198946,698.81,697.75,0.973]
[1736911656020,1.07198946,698.92,697.75,0.973]
[1736911657020,1.07198946,698.91,697.75,0.973]
[1736911661930,0.28613531,698.97,697.75,0.973]
[1736911661931,1.07198946,698.9,697.75,0.973]
[1736911664032,1.07198946,698.89,697.75,0.973]
[1736911665836,1.07198946,698.77,697.75,0.973]
[1736911667739,1.07198946,698.76,697.75,0.973]
[1736911668736,1.07198946,698.74,697.75,2.03938356]
[1736911670038,1.07198946,698.79,697.78,1.06638356]
[1736911670843,1.07198946,698.8,697.8,1.06638356]
[1736911671446,1.07198946,698.8,697.8,1.87738356]
[1736911671844,1.07198946,698.77,697.8,0.811]
[1736911673646,1.07198946,698.81,697.8,0.811]
[1736911674945,1.07198946,698.79,697.8,0.811]
[1736911676247,1.07198946,698.8,697.8,0.811]
[1736911677455,0.28613531,698.97,697.8,0.811]
[1736911677456,1.07198946,698.84,697.8,0.811]
[1736911678342,1.07198946,698.88,697.8,0.811]
[1736911679250,1.07198946,698.91,697.8,0.811]
[1736911680151,1.07198946,698.9,697.8,0.811]
[1736911681351,1.07198946,698.89,697.8,0.811]
[1736911682052,1.07198946,698.88,697.8,0.811]
[1736911684257,0.28613531,698.97,697.8,0.811]
[1736911684258,1.07198946,698.86,697.8,0.811]
[1736911684851,1.07198946,698.87,697.8,0.811]
[1736911685757,1.07198946,698.9,697.8,0.811]
[1736911686761,1.07198946,698.86,697.8,0.811]
[1736911689967,1.07198946,698.78,697.81,1.06638356]
[1736911691164,1.07198946,698.78,697.82,1.06638356]
[1736911691963,1.07198946,698.78,697.81,1.1]
[1736911693067,1.07198946,698.81,697.81,1.1]
[1736911693967,1.07198946,698.8,697.81,1.1]
[1736911694768,1.07198946,698.82,697.81,1.1]
[1736911695865,1.07198946,698.83,697.81,1.1]
[1736911698668,0.28613531,698.97,697.81,1.1]
[1736911698669,1.07198946,698.81,697.81,1.1]
[1736911701274,1.07198946,698.82,697.81,1.1]
[1736911702067,0.28613531,698.97,697.81,1.1]
[1736911702068,1.07198946,698.81,697.81,1.1]
[1736911703174,1.07198946,698.8,697.81,1.1]
[1736911704078,1.07198946,698.75,697.82,1.06638356]
[1736911704977,1.07198946,698.76,697.84,1.06638356]
[1736911706176,1.07198946,698.92,697.81,1.1]
[1736911708277,1.07198946,698.93,697.81,1.1]
[1736911709378,1.07198946,698.9,697.81,1.1]
[1736911711479,1.07198946,698.89,697.81,1.1]
[1736911712776,1.07198946,698.9,697.81,1.1]
[1736911714181,1.07198946,698.88,697.81,1.1]
[1736911714976,1.07198946,698.89,697.81,1.1]
[1736911715976,0.28613531,698.97,697.81,1.1]
[1736911715977,1.07198946,698.86,697.81,1.1]
[1736911716877,1.07198946,698.85,697.81,1.1]
[1736911719184,1.07198946,698.86,697.81,1.1]
[1736911720284,1.07198946,698.82,697.87,1.06638356]
[1736911721384,1.07198946,698.83,697.84,1.06638356]
[1736911721583,1.07198946,698.83,697.84,2.27238356]
[1736911722385,1.07198946,698.84,697.85,1.06638356]
[1736911723584,1.07198946,698.85,697.86,1.06638356]
[1736911724681,1.07198946,698.85,697.85,1.06638356]
[1736911725483,1.07198946,698.85,697.84,2.27238356]
[1736911726686,1.07198946,698.84,697.84,1.206]
[1736911727587,1.07198946,698.85,697.84,1.206]
[1736911728788,1.07198946,698.87,697.84,1.206]
[1736911729593,1.07198946,698.86,697.84,1.206]
[1736911730493,1.07198946,698.87,697.84,1.206]
[1736911731493,1.07198946,698.88,697.84,1.206]
[1736911733191,1.07198946,698.89,697.84,1.206]
[1736911734295,1.07198946,698.92,697.84,1.206]
[1736911735196,0.28613531,698.97,697.84,1.206]
[1736911745302,1.07255926,698.93,697.84,1.206]
[1736911749100,1.07255926,698.92,697.84,1.206]
[1736911750200,1.07255926,698.91,697.84,1.206]
[1736911752100,1.07255926,698.89,697.85,1.0681442]
[1736911753595,1.07255926,698.89,697.85,2.2101442]
[1736911754500,1.07255926,698.88,697.86,1.0681442]
[1736911755699,1.07255926,698.88,697.85,2.2101442]
[1736911757207,1.07255926,698.89,697.88,1.0681442]
[1736911758408,1.07255926,698.89,697.89,1.0681442]
[1736911759411,1.07255926,698.93,697.89,1.0681442]
[1736911760607,1.07255926,698.93,697.85,1.142]
[1736911760608,0.28613531,698.97,697.85,1.142]
[1736911764507,1.07255926,699.01,697.85,1.142]
[1736911764912,1.07255926,699.0,697.85,1.142]
[1736911767214,1.07255926,699.01,697.85,1.142]
[1736911770016,1.07255926,698.91,697.85,1.142]
[1736911770419,5.41367945,699.9,697.85,1.142]
[1736911770716,0.26309015,699.66,697.85,1.142]
[1736911771017,0.26309015,699.65,697.85,1.142]
[1736911771211,0.71376882,700.21,697.85,1.142]
[1736911771212,1.07294138,698.94,697.85,1.142]
[1736911772919,1.07294138,698.93,697.85,2.21008757]
[1736911776525,1.07294138,698.89,697.88,1.06808757]
[1736911778026,1.07294138,698.9,697.94,1.06808757]
[1736911778926,1.07294138,698.9,697.95,1.06808757]
[1736911780127,1.07294138,698.9,697.94,1.06808757]
[1736911781330,1.07294138,698.91,697.95,1.06808757]
[1736911781720,1.07294138,698.91,697.95,2.13908757]
[1736911782330,1.07294138,698.98,697.95,1.071]
[1736911794032,1.07294138,699.03,697.95,1.071]
[1736911795739,1.07294138,699.04,697.95,1.071]
[1736911797344,1.07294138,699.05,697.95,1.071]
[1736911801244,1.07294138,699.03,697.95,1.071]
[1736911804745,1.07294138,698.97,697.95,1.071]
[1736911806853,1.07294138,698.93,697.95,2.13908757]
[1736911808047,1.07294138,699.16,697.95,1.071]
[1736911809052,1.07294138,699.21,697.95,1.071]
[1736911809950,1.07294138,699.26,697.95,1.071]
[1736911810851,1.07294138,699.27,697.95,1.071]
[1736911812160,1.07294138,699.33,697.95,1.071]
[1736911813161,1.07294138,699.34,697.95,1.071]
[1736911813361,1.3589253,699.34,697.95,1.071]
[1736911814155,0.28598392,699.34,697.95,1.071]
[1736911820061,0.28598392,699.34,697.96,0.28654937]
[1736911821569,0.28598392,699.34,697.96,1.21254937]
[1736911827670,0.26299819,699.33,697.96,1.21254937]
[1736911829573,0.26299583,699.32,697.96,1.21254937]
[1736911829771,0.26299583,699.31,697.96,1.21254937]
[1736911829971,0.26299583,699.3,697.96,1.21254937]
[1736911830168,0.26299583,699.29,697.96,1.21254937]
[1736911830370,0.26299777,699.28,697.96,1.21254937]
[1736911830571,0.26299777,699.27,697.96,1.21254937]
[1736911830874,0.26299777,699.26,697.96,1.21254937]
[1736911831073,0.28598392,699.34,697.96,1.21254937]
[1736911834774,0.26300559,699.33,697.96,1.21254937]
[1736911834974,0.28598392,699.34,697.96,1.21254937]
[1736911836979,0.26299531,699.33,697.96,1.21254937]
[1736911837879,0.26299562,699.32,697.96,1.21254937]
[1736911838083,0.26299562,699.31,697.96,1.21254937]
[1736911838380,0.26299562,699.3,697.98,1.06808757]
[1736911838580,0.26299562,699.31,697.98,1.06808757]
[1736911838780,0.26299562,699.3,697.98,1.06808757]
[1736911838979,0.26299562,699.29,697.98,1.06808757]
[1736911839180,0.26299562,699.28,697.98,1.06808757]
[1736911839382,0.26299562,699.27,698.01,1.06808757]
[1736911839682,1.07294138,699.28,698.01,1.06808757]
[1736911840380,0.28598392,699.34,697.96,1.21254937]
[1736911840680,0.28598392,699.34,697.96,0.28654937]
[1736911841481,1.07294138,699.33,697.96,0.28654937]
[1736911841674,1.07294138,699.33,697.96,1.42854937]
[1736911842477,1.07294138,699.28,697.96,1.42854937]
[1736911843482,1.07294138,699.27,697.96,1.42854937]
[1736911844582,1.07294138,699.27,697.96,2.49663694]
[1736911846085,1.07294138,699.25,697.96,1.42854937]
[1736911847588,1.07294138,699.24,697.96,2.49663694]
[1736911848085,1.07294138,699.24,697.97,1.06808757]
[1736911849488,1.07294138,699.24,697.99,1.06808757]
[1736911850691,1.07294138,699.24,697.96,1.42854937]
[1736911850692,1.07294138,699.12,698.15,1.06808757]
[1736911851594,0.28598392,699.34,697.96,1.42854937]
[1736911851595,1.07294138,699.14,698.16,1.06808757]
[1736911852798,1.07294138,699.17,698.15,1.06808757]
[1736911853998,1.07294138,699.16,698.14,1.06808757]
[1736911855896,1.07294138,699.18,698.16,1.06808757]
[1736911858293,0.28598392,699.34,698.16,1.06808757]
[1736911858294,1.07294138,699.19,698.16,1.06808757]
[1736911859299,1.07294138,699.19,698.18,1.06808757]
[1736911860105,1.07294138,699.15,698.16,1.06808757]
[1736911861202,1.07294138,699.15,698.17,1.06808757]
[1736911862305,1.07294138,699.15,698.22,1.06808757]
[1736911863402,0.28598392,699.34,698.01,1.06808757]
[1736911863907,0.28598392,699.34,698.02,0.28652474]
[1736911873012,0.28598392,699.34,698.09,1.06808757]
[1736911873809,0.28598392,699.34,698.08,1.06808757]
[1736911878117,0.28598392,699.34,698.02,0.28652474]
[1736911879421,0.28598392,699.34,698.02,1.35461231]
[1736911880521,0.28598392,699.34,698.02,0.28652474]
[1736911889025,0.28598392,699.34,698.02,1.23652474]
[1736911900325,0.28598392,699.34,698.08,1.06468051]
[1736911900524,0.28598392,699.34,698.09,0.28649601]
[1736911901526,0.28598392,699.34,698.1,1.06468051]
[1736911902031,0.28598392,699.34,698.11,0.2864878]
[1736911902325,1.07075268,699.62,698.11,0.2864878]
[1736911902729,1.07075268,699.71,698.11,0.2864878]
[1736911902929,0.28583678,699.7,698.11,0.2864878]
[1736911907328,0.28583678,699.7,698.11,1.4594878]
[1736911911046,1.35658946,699.7,698.11,1.4594878]
[1736911912133,1.07075268,699.69,698.11,1.4594878]
[1736911913142,0.28583678,699.7,698.11,1.4594878]
[1736911921547,0.28583678,699.7,698.12,2.5612655]
[1736911921744,0.28583678,699.7,698.13,2.5612655]
[1736911921943,0.28583678,699.7,698.14,2.5612655]
[1736911922142,0.28583678,699.7,698.15,2.5612655]
[1736911922345,0.28583678,699.7,698.17,0.28646318]
[1736911922545,0.28583678,699.7,698.18,2.5612655]
[1736911922848,0.28583678,699.7,698.44,1.06282592]
[1736911923148,0.28583678,699.7,698.45,0.28634834]
[1736911930656,1.06968749,700.05,698.45,0.28634834]
[1736911931062,1.06968749,700.14,698.45,0.28634834]
[1736911931362,0.28566123,700.13,698.45,0.28634834]
[1736911940566,0.26274951,700.12,698.45,0.28634834]
[1736911940771,0.28566939,700.11,698.45,0.28634834]
[1736911941273,0.26274377,700.1,698.45,0.28634834]
[1736911942875,0.28566939,700.11,698.45,0.28634834]
[1736911943069,0.26272814,700.1,698.45,0.28634834]
[1736911943271,0.28566939,700.11,698.45,0.28634834]
[1736911944371,0.26272663,700.1,698.45,0.28634834]
[1736911944572,0.28566939,700.11,698.45,0.28634834]
[1736911944773,0.26272243,700.1,698.45,0.28634834]
[1736911945168,0.28566939,700.11,698.45,0.28634834]
[1736911953973,0.28566939,700.11,698.45,1.23234834]
[1736911961585,0.28566939,700.11,698.56,1.06282592]
[1736911961987,0.28566939,700.11,698.58,0.28629505]
[1736911965291,0.28566939,700.11,698.6,1.06126968]
[1736911965694,0.28566939,700.11,698.61,0.28628276]
[1736911965894,0.2739764,700.11,698.61,0.28628276]
[1736911966388,0.2739764,700.11,698.65,1.06126968]
[1736911966592,0.2739764,700.11,698.66,0.28626227]
[1736911969293,0.2739764,700.11,698.66,1.34753195]
[1736911970294,0.2739764,700.11,698.66,2.46553195]
[1736911970695,0.2739764,700.11,698.67,1.06126968]
[1736911970897,0.2739764,700.11,698.68,0.28625407]
[1736911971698,0.2739764,700.11,698.71,1.06126968]
[1736911971892,0.2739764,700.11,698.72,0.28623769]
[1736911972794,0.2739764,700.11,698.73,1.06126968]
[1736911972997,0.2739764,700.11,698.74,0.28622949]
[1736911973897,0.2739764,700.11,698.74,1.34749917]
[1736911974290,0.2739764,700.11,698.74,0.28622949]
[1736911981105,1.34460809,700.11,698.8,1.06449495]
[1736911981503,0.2739764,700.11,698.74,0.28622949]
[1736911982305,1.07097967,700.09,698.83,1.06478783]
[1736911982806,0.2739764,700.11,698.74,0.28622949]
[1736911983503,1.07106529,700.08,698.82,1.06489475]
[1736911983704,0.2739764,700.11,698.74,0.28622949]
[1736911984307,1.07123543,700.06,698.82,1.06511756]
[1736911985605,1.07123543,699.98,698.97,1.06511756]
[1736911986609,1.07123543,699.96,698.98,1.06511756]
[1736911987508,1.07123543,699.96,698.98,2.21211756]
[1736911987714,1.07123543,699.96,699.0,1.06511756]
[1736911988915,1.07123543,699.96,698.98,1.147]
[1736911990610,1.07123543,699.94,698.98,1.147]
[1736911993115,0.2739764,700.11,698.98,1.147]
[1736911993116,1.07123543,699.97,698.98,1.147]
[1736911994718,1.07123543,700.0,698.98,1.147]
[1736911995921,1.07123543,700.1,698.98,1.147]
[1736911997020,1.34521183,700.11,698.98,1.147]
[1736911998322,0.2739764,700.11,698.98,1.147]
[1736912005328,1.07119018,700.09,698.98,1.147]
[1736912007130,1.07119018,700.08,698.98,1.147]
[1736912008233,1.07119018,700.07,698.98,1.147]
[1736912009329,1.07119018,700.03,698.98,1.147]
[1736912010435,0.2739764,700.11,698.98,1.147]
[1736912010436,1.07119018,700.01,698.98,1.147]
[1736912012633,1.07119018,699.97,698.98,1.147]
[1736912014739,1.07119018,700.0,698.98,1.147]
[1736912015733,1.07119018,700.01,698.98,1.147]
[1736912016731,1.07119018,700.0,698.98,1.147]
[1736912018534,1.07119018,700.01,698.98,1.147]
[1736912019742,1.07119018,700.0,698.98,1.147]
[1736912022943,1.07119018,699.99,698.98,1.147]
[1736912023945,1.07119018,700.0,698.98,1.147]
[1736912025140,1.07119018,699.98,698.98,1.147]
[1736912026246,1.07119018,699.97,698.98,1.147]
[1736912027143,1.07119018,699.99,698.98,1.147]
[1736912028139,1.07119018,699.94,698.98,1.147]
[1736912030143,1.07119018,700.0,698.98,1.147]
[1736912032550,1.07119018,699.99,698.98,1.147]
[1736912034650,1.07119018,699.98,698.98,1.147]
[1736912036751,1.07119018,699.99,698.98,1.147]
[1736912037449,1.07119018,699.98,698.98,1.147]
[1736912038449,1.34516658,700.11,698.98,1.147]
[1736912039245,1.07119018,700.1,698.98,1.147]
[1736912040245,0.2739764,700.11,698.98,1.147]
[1736912048752,1.34551992,700.11,698.98,1.147]
[1736912050156,1.07154352,700.08,698.98,1.147]
[1736912051053,1.07154352,699.97,698.98,1.147]
[1736912051956,1.07154352,699.94,698.98,1.147]
[1736912055258,1.07154352,699.97,698.98,1.147]
[1736912057261,1.07154352,699.94,698.98,1.147]
[1736912058056,1.07154352,699.93,698.98,1.147]
[1736912061460,1.07154352,699.95,698.98,1.147]
[1736912062561,0.2739764,700.11,698.98,1.147]
[1736912062562,1.07154352,699.94,698.98,1.147]
[1736912063658,1.07154352,699.95,698.98,1.147]
[1736912064764,1.07154352,700.04,698.98,1.147]
[1736912065764,1.07154352,700.1,698.98,1.147]
[1736912066964,1.07154352,700.09,698.98,1.147]
[1736912068861,1.07154352,700.1,698.98,1.147]
[1736912070167,0.2739764,700.11,698.98,1.147]
[1736912074976,1.07154352,700.05,698.98,1.147]
[1736912077081,0.2739764,700.11,698.98,1.147]
[1736912077082,1.07154352,700.04,698.98,1.147]
[1736912078384,1.07154352,700.02,698.98,1.147]
[1736912080484,1.07154352,699.94,698.98,1.147]
[1736912082681,1.07154352,699.93,698.98,1.147]
[1736912083891,1.07154352,700.01,698.98,1.147]
[1736912085090,1.07154352,699.98,698.98,1.147]
[1736912086092,1.07154352,699.99,698.98,1.147]
[1736912090494,1.07154352,700.05,698.98,1.147]
[1736912093594,1.07154352,700.03,698.98,1.147]
[1736912094594,1.07154352,700.02,698.98,1.147]
[1736912095797,0.2739764,700.11,698.98,1.147]
[1736912095798,1.07154352,700.01,698.98,1.147]
[1736912098604,0.2739764,700.11,698.98,1.147]
[1736912098806,0.26275734,700.1,698.98,1.147]
[1736912099003,0.28567755,700.09,698.98,1.147]
[1736912099200,0.26275734,700.08,698.98,1.147]
[1736912099504,1.07154352,699.96,698.98,1.147]
[1736912100304,0.26277666,699.95,698.98,1.147]
[1736912100504,1.07154352,699.97,698.98,1.147]
[1736912100706,0.2627759,699.96,698.98,1.147]
[1736912101702,1.07154352,699.97,698.98,1.147]
[1736912101904,0.26278447,699.96,698.98,1.147]
[1736912102107,1.07154352,699.89,698.98,1.147]
[1736912102307,0.26278447,699.88,698.98,1.147]
[1736912103206,1.07154352,699.85,698.98,1.147]
[1736912104410,1.07154352,699.88,698.98,1.147]
[1736912104604,0.26278872,699.87,698.98,1.147]
[1736912105510,0.26278872,699.86,698.98,1.147]
[1736912105711,1.07154352,699.89,698.98,1.147]
[1736912105906,0.2627889,699.88,698.98,1.147]
[1736912106312,0.2627889,699.87,698.98,1.147]
[1736912106611,0.2627889,699.86,698.98,1.147]
[1736912106811,1.07154352,699.9,698.98,1.147]
[1736912107012,0.26278887,699.89,698.98,1.147]
[1736912107213,0.2627889,699.88,698.98,1.147]
[1736912107411,0.2627889,699.87,698.98,1.147]
[1736912107611,1.07154352,699.91,698.98,1.147]
[1736912107811,0.26278898,699.9,698.98,1.147]
[1736912108010,0.26278898,699.89,698.98,1.147]
[1736912108212,0.26278898,699.88,698.98,1.147]
[1736912108409,0.26278898,699.87,698.98,1.147]
[1736912108611,0.26278898,699.86,698.98,1.147]
[1736912108913,1.07154352,699.93,698.98,1.147]
[1736912109914,0.2627909,699.92,698.98,1.147]
[1736912110316,0.2627913,699.91,698.98,1.147]
[1736912110617,0.2627913,699.9,698.98,1.147]
[1736912110914,0.2627913,699.89,698.98,1.147]
[1736912112814,1.07154352,699.9,698.98,1.147]
[1736912113318,1.07154352,699.87,698.98,1.147]
[1736912114117,0.26279864,699.86,698.98,1.147]
[1736912114319,1.07154352,699.87,698.98,1.147]
[1736912114526,1.07154352,699.89,698.98,1.147]
[1736912115313,0.26280388,699.88,698.98,1.147]
[1736912115819,0.26282937,699.87,698.98,1.147]
[1736912116017,0.26282937,699.86,698.98,1.147]
[1736912116214,0.26282937,699.85,698.98,1.147]
[1736912116522,0.26284881,699.84,698.98,1.147]
[1736912116720,0.26284881,699.83,698.98,1.147]
[1736912116916,0.26284881,699.82,698.98,1.147]
[1736912117120,0.26284881,699.81,698.98,1.147]
[1736912117322,0.26284881,699.8,698.98,1.147]
[1736912117521,0.54864883,699.79,698.98,1.147]
[1736912117723,0.54865291,699.78,698.98,1.147]
[1736912117917,0.26284881,699.77,698.98,1.147]
[1736912118521,1.07154352,699.76,698.98,1.147]
[1736912118720,0.26284881,699.75,698.98,1.147]
[1736912119318,1.07154352,699.76,698.98,1.147]
[1736912119319,0.54868335,699.74,698.98,1.147]
[1736912119521,0.26286291,699.73,698.98,1.147]
[1736912122023,0.28582044,699.74,698.98,1.147]
[1736912122325,0.26286371,699.73,698.98,1.147]
[1736912122924,0.26286126,699.72,698.98,1.147]
[1736912123124,0.26286126,699.71,698.98,1.147]
[1736912123428,0.28582044,699.74,698.98,1.147]
[1736912123724,0.26286107,699.73,698.98,1.147]
[1736912124824,0.28582044,699.74,698.98,1.147]
[1736912125025,0.26285673,699.73,698.98,1.147]
[1736912126222,0.28582044,699.74,698.98,1.147]
[1736912126828,0.26285383,699.73,698.98,1.147]
[1736912127724,0.26285562,699.72,698.98,1.147]
[1736912128022,0.26285562,699.71,698.98,1.147]
[1736912128326,0.26285562,699.7,698.98,1.147]
[1736912128627,0.28582044,699.74,698.98,1.147]
[1736912128826,0.26285572,699.73,698.98,1.147]
[1736912130428,0.28582044,699.74,698.98,1.147]
[1736912130622,0.26285533,699.73,698.98,1.147]
[1736912131231,0.28582044,699.74,698.98,1.147]
[1736912131529,0.26285551,699.73,698.98,1.147]
[1736912132526,0.28582044,699.74,698.98,1.147]
[1736912142429,1.07154352,699.94,698.98,1.147]
[1736912143438,1.07154352,700.09,698.98,1.147]
[1736912143737,0.26275277,700.08,698.98,1.147]
[1736912145437,0.26275277,700.07,698.98,1.147]
[1736912145637,0.26275277,700.06,698.98,1.147]
[1736912145839,0.26275277,700.05,698.98,1.147]
[1736912146039,0.26275277,700.04,698.98,1.147]
[1736912146240,0.26275277,700.03,698.98,1.147]
[1736912146432,0.26275277,700.02,698.98,1.147]
[1736912146632,0.26275277,700.01,698.98,1.147]
[1736912146837,0.26275277,700.0,698.98,1.147]
[1736912147034,1.07154352,700.08,698.98,1.147]
[1736912147340,0.26275118,700.07,698.98,1.147]
[1736912147834,1.07154352,700.11,698.98,1.147]
[1736912148036,0.26275767,700.1,698.98,1.147]
[1736912148234,1.35721291,700.11,698.98,1.147]
[1736912148435,0.26275968,700.1,698.98,1.147]
[1736912150239,1.35721291,700.11,698.98,1.147]
[1736912150441,0.26276166,700.1,698.98,1.147]
[1736912150840,0.28567755,700.09,698.98,1.147]
[1736912151040,0.26276166,700.08,698.98,1.147]
[1736912151939,0.28568571,700.07,698.98,1.147]
[1736912152243,0.26276166,700.06,698.98,1.147]
[1736912152435,0.28569387,700.05,698.98,1.147]
[1736912152639,0.26276166,700.04,698.98,1.147]
[1736912153041,0.54846676,700.03,698.98,1.147]
[1736912153342,0.26276472,700.02,698.98,1.147]
[1736912156640,0.28570204,700.03,698.98,1.147]
[1736912156641,0.26276345,700.01,698.98,1.147]
[1736912156839,0.26276345,700.0,698.98,1.147]
[1736912157043,0.26276345,699.99,698.98,1.147]
[1736912157243,0.26276345,699.98,698.98,1.147]
[1736912157447,0.28570204,700.03,698.98,1.147]
[1736912157639,0.26276553,700.02,698.98,1.147]
[1736912159149,0.28570204,700.03,698.98,1.147]
[1736912170158,1.07154352,700.01,698.98,1.147]
[1736912171559,1.07154352,700.0,698.98,1.147]
[1736912172459,1.07154352,699.98,698.98,1.147]
[1736912173665,1.07154352,700.01,698.98,1.147]
[1736912174863,1.07154352,699.99,698.98,1.147]
[1736912175659,1.07154352,699.97,698.98,1.147]
[1736912176660,1.07154352,699.94,698.98,1.147]
[1736912178667,1.07154352,699.91,698.98,1.147]
[1736912179965,1.07154352,699.92,698.98,1.147]
[1736912180969,1.07154352,699.96,698.98,1.147]
[1736912182061,1.07154352,699.93,698.98,1.147]
[1736912182961,1.07154352,699.82,698.98,1.147]
[1736912183968,1.07154352,699.81,698.98,1.147]
[1736912185069,1.07154352,699.94,698.98,1.147]
[1736912188872,1.07154352,699.93,698.98,1.147]
[1736912192071,1.07154352,699.94,698.98,1.147]
[1736912193177,1.07154352,699.95,698.98,1.147]
[1736912195771,1.07154352,699.83,698.98,1.147]
[1736912196976,1.07154352,699.89,698.98,1.147]
[1736912198078,1.07154352,699.9,698.98,1.147]
[1736912199478,0.28570204,700.03,698.98,1.147]
[1736912199479,1.07154352,699.91,698.98,1.147]
[1736912200379,1.07154352,699.89,698.98,1.147]
[1736912201078,0.2627506,699.88,698.98,1.147]
[1736912201283,1.07154352,699.86,698.98,1.147]
[1736912202385,1.07154352,699.82,698.98,1.147]
[1736912204481,1.07154352,699.81,698.98,1.147]
[1736912205480,1.07154352,699.82,698.98,1.147]
[1736912209895,1.07154352,699.83,698.98,1.147]
[1736912210891,1.07154352,700.01,698.98,1.147]
[1736912213090,0.28570204,700.03,698.98,1.147]
[1736912214394,1.35724556,700.03,698.98,1.147]
[1736912215398,0.28570204,700.03,698.98,1.147]
[1736912216394,1.07154352,700.02,698.98,1.147]
[1736912217399,1.35724556,700.03,698.98,1.147]
[1736912218502,0.28570204,700.03,698.98,1.147]
[1736912219203,0.26274,700.02,698.98,1.147]
[1736912219499,1.33428352,700.02,698.98,1.147]
[1736912219699,1.07154352,700.02,698.98,1.147]
[1736912219902,0.26273988,700.01,698.98,1.147]
[1736912220098,1.07154352,700.02,698.98,1.147]
[1736912220898,1.07154352,699.91,698.98,1.147]
[1736912222000,1.07154352,699.93,698.98,1.147]
[1736912223709,1.07154352,699.92,698.98,1.147]
[1736912224807,1.07154352,700.02,698.98,1.147]
[1736912227509,1.07154352,699.98,698.98,1.147]
[1736912228403,1.07154352,699.99,698.98,1.147]
[1736912230607,1.07154352,699.98,698.98,1.147]
[1736912232809,1.07154352,699.97,698.98,1.147]
[1736912234718,1.07154352,699.88,698.98,1.147]
[1736912235517,1.07154352,699.87,698.98,1.147]
[1736912236717,1.07154352,699.86,698.98,1.147]
[1736912238118,0.28570204,700.03,698.98,1.147]
[1736912238119,1.07154352,699.96,698.98,1.147]
[1736912238917,1.07154352,699.93,698.98,1.147]
[1736912239822,0.28570204,700.03,698.98,1.147]
[1736912254433,1.07154352,700.57,698.99,0.28612712]
[1736912254628,0.28548589,700.56,698.99,0.28612712]
[1736912254828,0.26264337,700.55,698.99,0.28612712]
[1736912255635,0.28549404,700.54,698.99,0.28612712]
[1736912255936,0.28549404,700.54,698.99,1.19612712]
[1736912259535,0.26264652,700.53,698.99,1.19612712]
[1736912259740,0.28550219,700.52,698.99,1.19612712]
[1736912259940,0.26264652,700.51,698.99,1.19612712]
[1736912260141,0.28551034,700.5,698.99,1.19612712]
[1736912260336,0.26264652,700.49,698.99,1.19612712]
[1736912260539,0.2855185,700.48,698.99,1.19612712]
[1736912260742,0.26264652,700.47,698.99,1.19612712]
[1736912260942,0.28552665,700.46,698.99,1.19612712]
[1736912261145,0.26264652,700.45,698.99,1.19612712]
[1736912261538,0.54817725,700.45,698.99,1.19612712]
[1736912261741,0.26264652,700.44,698.99,1.19612712]
[1736912262346,0.26264355,700.43,698.99,1.19612712]
[1736912262543,0.26264355,700.42,698.99,1.19612712]
[1736912262742,0.26264355,700.41,698.99,1.19612712]
[1736912262956,0.28553073,700.45,698.99,1.19612712]
[1736912272652,1.07154352,700.44,698.99,1.19612712]
[1736912272852,0.28553888,700.43,698.99,1.19612712]
[1736912273755,1.07154352,700.42,698.99,1.19612712]
[1736912273955,0.28554703,700.41,698.99,1.19612712]
[1736912274657,0.26266456,700.4,698.99,1.19612712]
[1736912274860,0.28555519,700.39,698.99,1.19612712]
[1736912275155,0.26266456,700.38,698.99,1.19612712]
[1736912275355,0.28556334,700.37,698.99,1.19612712]
[1736912275556,0.26266456,700.36,698.99,1.19612712]
[1736912275858,1.07154352,700.25,698.99,1.19612712]
[1736912277161,1.07154352,700.27,698.99,1.19612712]
[1736912279356,1.07154352,700.26,698.99,1.19612712]
[1736912280857,1.07154352,700.25,699.03,1.06571028]